bitfinex/quotes_BTCUSD_20260101
["timestamp","ask_amount","ask_price","bid_price","bid_amount"]
[1767263103471,0.13638146,87845.0,87831.0,0.01149133]
[1767263104204,0.13638146,87845.0,87831.0,0.00010583]
[1767263104368,0.13638146,87845.0,87831.0,0.01149133]
[1767263104938,0.13638146,87845.0,87831.0,0.00010583]
[1767263105271,0.13638146,87845.0,87831.0,0.01149133]
[1767263106112,0.13638146,87845.0,87831.0,0.00010583]
[1767263106472,0.13638146,87845.0,87831.0,0.04892361]
[1767263106887,0.13638146,87845.0,87831.0,0.06030911]
[1767263110359,0.13633986,87845.0,87831.0,0.06030911]
[1767263111013,0.13633986,87845.0,87832.0,0.01138537]
[1767263114610,0.13633986,87845.0,87833.0,0.01138524]
[1767263115708,0.13633986,87845.0,87832.0,0.01138537]
[1767263115929,0.13633986,87845.0,87833.0,0.01138524]
[1767263116547,0.13633986,87845.0,87832.0,0.01138537]
[1767263117110,0.1831977,87845.0,87832.0,0.01138537]
[1767263117544,0.1831977,87845.0,87833.0,0.01138524]
[1767263118490,0.04685784,87845.0,87834.0,0.01138511]
[1767263118653,0.04685784,87845.0,87833.0,0.01138524]
[1767263119678,0.04685784,87845.0,87834.0,0.01138511]
[1767263121275,0.04685784,87845.0,87833.0,0.01138524]
[1767263122297,0.04685784,87845.0,87834.0,0.01138511]
[1767263122490,0.04685784,87845.0,87833.0,0.01138524]
[1767263123019,0.04685784,87845.0,87834.0,0.01138511]
[1767263124527,0.04685784,87845.0,87835.0,0.51423217]
[1767263125698,0.04685784,87845.0,87833.0,0.01138524]
[1767263126436,0.04685784,87845.0,87832.0,0.01138537]
[1767263126736,0.04685784,87845.0,87833.0,0.01138524]
[1767263128565,0.04685784,87845.0,87834.0,0.01138511]
[1767263128732,0.04685784,87845.0,87833.0,0.01138524]
[1767263129650,0.04681663,87845.0,87834.0,0.01138511]
[1767263129828,0.04681663,87845.0,87833.0,0.01138524]
[1767263130251,0.04681663,87845.0,87834.0,0.01138511]
[1767263130436,0.04681663,87845.0,87833.0,0.01138524]
[1767263130630,0.04681663,87845.0,87834.0,0.01138511]
[1767263130834,0.04681663,87845.0,87833.0,0.01138524]
[1767263131030,0.04681663,87845.0,87834.0,0.01138511]
[1767263132789,0.04681663,87845.0,87835.0,0.01138498]
[1767263132989,0.04681663,87845.0,87834.0,0.01138511]
[1767263133193,0.04681663,87845.0,87833.0,0.01138524]
[1767263133391,0.04681663,87845.0,87834.0,0.01138511]
[1767263133780,0.04681663,87845.0,87833.0,0.01138524]
[1767263133994,0.04681663,87845.0,87834.0,0.01138511]
[1767263135007,0.04681663,87845.0,87835.0,0.01138498]
[1767263135184,0.04681663,87845.0,87834.0,0.01138511]
[1767263135921,0.04681663,87845.0,87833.0,0.01138524]
[1767263136084,0.04681663,87845.0,87834.0,0.01138511]
[1767263137134,0.04681663,87845.0,87833.0,0.01138524]
[1767263137333,0.04681663,87845.0,87834.0,0.01138511]
[1767263137753,0.04681663,87845.0,87835.0,0.01138498]
[1767263138051,0.04681663,87845.0,87834.0,0.01138511]
[1767263139355,0.04681663,87845.0,87833.0,0.01138524]
[1767263139523,0.04681663,87845.0,87834.0,0.01138511]
[1767263139710,0.04681663,87845.0,87833.0,0.01138524]
[1767263140110,0.04681663,87845.0,87834.0,0.01138511]
[1767263140655,0.04681663,87845.0,87833.0,0.01138524]
[1767263141555,0.04681663,87845.0,87832.0,0.01138537]
[1767263141760,0.04681663,87845.0,87833.0,0.01138524]
[1767263144645,0.04681663,87845.0,87834.0,0.01138511]
[1767263144896,0.04681663,87845.0,87833.0,0.01138524]
[1767263145892,0.04681663,87845.0,87834.0,0.01138511]
[1767263147324,0.04681663,87845.0,87833.0,0.01138524]
[1767263150061,0.04681663,87845.0,87834.0,0.01138511]
[1767263150351,0.04681663,87845.0,87833.0,0.01138524]
[1767263150558,0.04681663,87845.0,87834.0,0.01138511]
[1767263150719,0.04681663,87845.0,87833.0,0.01138524]
[1767263150920,0.04681663,87845.0,87834.0,0.01138511]
[1767263151862,0.04681663,87845.0,87833.0,0.01138524]
[1767263152461,0.04681663,87845.0,87834.0,0.01138511]
[1767263154375,0.04681663,87845.0,87833.0,0.01138524]
[1767263155200,0.04681663,87845.0,87834.0,0.01138511]
[1767263155699,0.04681663,87845.0,87833.0,0.01138524]
[1767263156297,0.04681663,87845.0,87834.0,0.01138511]
[1767263156462,0.04681663,87845.0,87833.0,0.01138524]
[1767263156798,0.04681663,87845.0,87834.0,0.01138511]
[1767263156983,0.04681663,87845.0,87833.0,0.01138524]
[1767263157599,0.04681663,87845.0,87834.0,0.01138511]
[1767263158068,0.04681663,87845.0,87833.0,0.01138524]
[1767263159092,0.04681663,87845.0,87834.0,0.01138511]
[1767263159294,0.04681663,87845.0,87833.0,0.01138524]
[1767263160060,0.04681663,87845.0,87831.0,0.06030911]
[1767263160298,0.0114,87847.0,87845.0,0.000549]
[1767263160500,0.0114,87847.0,87839.0,0.01138446]
[1767263161039,0.0114,87847.0,87840.0,0.01138433]
[1767263161184,0.0114,87847.0,87841.0,0.06081714]
[1767263161381,0.0114,87847.0,87841.0,0.04943294]
[1767263164268,0.0114,87847.0,87841.0,0.06081714]
[1767263164771,0.0114,87847.0,87841.0,0.04943294]
[1767263173530,0.0115479,87851.0,87841.0,0.04943294]
[1767263173531,0.0001479,87851.0,87848.0,0.01138329]
[1767263173678,0.0114,87850.0,87848.0,0.01138329]
[1767263174577,0.011184,87850.0,87848.0,0.01138329]
[1767263174982,0.0114,87849.0,87848.0,0.01138329]
[1767263175931,0.0114,87849.0,87847.0,0.06830006]
[1767263175932,0.0114,87849.0,87847.0,0.01138342]
[1767263178426,0.00232745,87849.0,87847.0,0.01138342]
[1767263180439,0.00232745,87849.0,87848.0,0.06829978]
[1767263180440,0.0114,87849.0,87848.0,0.06829978]
[1767263181759,0.0114,87849.0,87848.0,0.01138329]
[1767263183779,0.0114,87855.0,87849.0,0.01138316]
[1767263183978,0.0114,87855.0,87848.0,0.0585943]
[1767263184363,0.0114,87855.0,87849.0,0.01138316]
[1767263185217,0.0114,87855.0,87850.0,0.01138303]
[1767263186142,0.0114,87855.0,87849.0,0.01138316]
[1767263188081,0.0114,87855.0,87850.0,0.01138303]
[1767263188280,0.0114,87857.0,87849.0,0.01138316]
[1767263188592,0.0114,87857.0,87850.0,0.01138303]
[1767263189148,0.0114,87857.0,87849.0,0.01138316]
[1767263189576,0.0114,87857.0,87850.0,0.01138303]
[1767263190485,0.0114,87857.0,87849.0,0.01138316]
[1767263190652,0.0114,87857.0,87850.0,0.01138303]
[1767263191592,0.0114,87857.0,87849.0,0.01138316]
[1767263191784,0.0114,87857.0,87848.0,0.0585943]
[1767263191988,0.0114,87857.0,87849.0,0.01138316]
[1767263193183,0.0114,87857.0,87850.0,0.01138303]
[1767263193742,0.0114,87857.0,87849.0,0.01138316]
[1767263194106,0.0114,87857.0,87850.0,0.01138303]
[1767263195596,0.0001479,87859.0,87851.0,0.0113829]
[1767263195797,0.0001479,87859.0,87856.0,0.01138226]
[1767263201942,0.0001479,87859.0,87856.0,0.01132535]
[1767263204347,0.0001479,87859.0,87855.0,0.01138239]
[1767263208927,0.0001479,87859.0,87853.0,0.01138265]
[1767263208928,0.000549,87855.0,87853.0,0.01138265]
[1767263209523,0.0001479,87859.0,87853.0,0.01138265]
[1767263210192,0.0001479,87859.0,87854.0,0.01138252]
[1767263212220,0.0001479,87859.0,87853.0,0.01138265]
[1767263214965,0.0001479,87859.0,87854.0,0.01138252]
[1767263216421,0.0001479,87859.0,87852.0,0.01138278]
[1767263216765,0.0001479,87859.0,87853.0,0.01138265]
[1767263217097,0.0001479,87859.0,87852.0,0.01138278]
[1767263217500,0.0001479,87859.0,87853.0,0.01138265]
[1767263218583,0.0001479,87859.0,87852.0,0.01138278]
[1767263218821,0.0001479,87859.0,87853.0,0.01138265]
[1767263219598,0.0001479,87859.0,87854.0,0.01138252]
[1767263219798,0.0001479,87859.0,87853.0,0.01138265]
[1767263220004,0.0001479,87859.0,87854.0,0.01138252]
[1767263223294,0.0001479,87859.0,87853.0,0.01138265]
[1767263223494,0.0001479,87859.0,87854.0,0.01138252]
[1767263224031,0.0001479,87859.0,87855.0,0.01138239]
[1767263224334,0.0001479,87859.0,87854.0,0.01138252]
[1767263224535,0.0001479,87859.0,87853.0,0.01138265]
[1767263224840,0.0001479,87859.0,87854.0,0.01138252]
[1767263226035,0.0001479,87859.0,87855.0,0.01138239]
[1767263226644,0.0001479,87859.0,87854.0,0.01138252]
[1767263227817,0.0001479,87859.0,87853.0,0.01138265]
[1767263228014,0.0001479,87859.0,87854.0,0.01138252]
[1767263229956,0.0001479,87859.0,87853.0,0.01138265]
[1767263230129,0.000549,87854.0,87853.0,0.01138265]
[1767263230575,0.0001479,87859.0,87854.0,0.01138252]
[1767263230783,0.0001479,87859.0,87853.0,0.01138265]
[1767263231105,0.0001479,87859.0,87854.0,0.01138252]
[1767263233509,0.0001479,87859.0,87853.0,0.01138265]
[1767263234645,0.0001479,87859.0,87854.0,0.01138252]
[1767263235022,0.0001479,87859.0,87853.0,0.01138265]
[1767263235187,0.0001479,87859.0,87854.0,0.01138252]
[1767263235520,0.0001479,87859.0,87853.0,0.01138265]
[1767263235691,0.0001479,87859.0,87850.0,0.02276568]
[1767263235887,0.001099,87853.0,87850.0,0.01138265]
[1767263236065,0.0001479,87859.0,87850.0,0.02276568]
[1767263236492,0.0001479,87859.0,87851.0,0.0113829]
[1767263236906,0.0001479,87859.0,87850.0,0.02276568]
[1767263238913,0.0001479,87859.0,87850.0,0.01138265]
[1767263239298,0.0001479,87859.0,87850.0,0.02276568]
[1767263239901,0.0001479,87859.0,87851.0,0.0113829]
[1767263240843,0.0001479,87859.0,87850.0,0.01138265]
[1767263241049,0.0001479,87859.0,87850.0,0.02276568]
[1767263242463,0.0001479,87859.0,87851.0,0.0113829]
[1767263242627,0.0001479,87859.0,87850.0,0.02276568]
[1767263243615,0.0001479,87859.0,87851.0,0.0113829]
[1767263243909,0.0001479,87859.0,87850.0,0.02276568]
[1767263244035,0.0001479,87859.0,87850.0,0.07968066]
[1767263244233,0.0001479,87859.0,87851.0,0.0113829]
[1767263245492,0.0001479,87859.0,87850.0,0.02276568]
[1767263245727,0.0001479,87859.0,87851.0,0.0113829]
[1767263245927,0.0001479,87859.0,87850.0,0.02276568]
[1767263246131,0.0001479,87859.0,87851.0,0.0113829]
[1767263247414,0.0001479,87859.0,87850.0,0.02276568]
[1767263248020,0.0001479,87859.0,87851.0,0.0113829]
[1767263248430,0.0001479,87859.0,87850.0,0.02276568]
[1767263248747,0.0001479,87859.0,87851.0,0.0113829]
[1767263250665,0.0001479,87859.0,87852.0,0.01138278]
[1767263250865,0.0001479,87859.0,87851.0,0.0113829]
[1767263251066,0.0001479,87859.0,87850.0,0.02276568]
[1767263251229,0.0001479,87859.0,87850.0,0.01138265]
[1767263251433,0.0001479,87859.0,87850.0,0.02276568]
[1767263251857,0.0001479,87859.0,87850.0,0.01138265]
[1767263252174,0.0001479,87859.0,87850.0,0.02276568]
[1767263252376,0.0001479,87859.0,87851.0,0.0113829]
[1767263252871,0.0001479,87859.0,87850.0,0.02276568]
[1767263253034,0.0001479,87859.0,87850.0,0.01138265]
[1767263253288,0.0001479,87859.0,87849.0,0.52544189]
[1767263253721,0.0001479,87859.0,87850.0,0.01138303]
[1767263255926,0.0001479,87859.0,87851.0,0.0113829]
[1767263256493,0.0001479,87859.0,87850.0,0.01138303]
[1767263259569,0.0001479,87859.0,87851.0,0.0113829]
[1767263261502,0.0001479,87859.0,87849.0,0.01138316]
[1767263261710,0.0001479,87859.0,87851.0,0.0113829]
[1767263262337,0.0001479,87859.0,87850.0,0.01138303]
[1767263262514,0.0001479,87859.0,87851.0,0.0113829]
[1767263263149,0.0001479,87859.0,87852.0,0.01138278]
[1767263268451,0.0001479,87859.0,87852.0,0.01132587]
[1767263269191,0.0001479,87859.0,87851.0,0.0113829]
[1767263269389,0.0001479,87859.0,87852.0,0.01138278]
[1767263270880,0.0001479,87859.0,87851.0,0.0113829]
[1767263271286,0.0001479,87859.0,87850.0,0.01138303]
[1767263271522,0.0001479,87859.0,87851.0,0.0113829]
[1767263271727,0.0001479,87859.0,87850.0,0.01138303]
[1767263271923,0.0001479,87859.0,87851.0,0.0113829]
[1767263276268,0.0001479,87859.0,87850.0,0.01138303]
[1767263276466,0.0001479,87859.0,87851.0,0.0113829]
[1767263280517,0.0001479,87859.0,87852.0,0.01138278]
[1767263282923,0.0001479,87859.0,87851.0,0.0113829]
[1767263283087,0.0001479,87859.0,87852.0,0.01138278]
[1767263283287,0.0001479,87859.0,87851.0,0.0113829]
[1767263283470,0.0001479,87859.0,87852.0,0.01138278]
[1767263284184,0.0001479,87859.0,87853.0,0.01138265]
[1767263284388,0.0001479,87859.0,87852.0,0.01138278]
[1767263288749,0.0001479,87859.0,87851.0,0.0113829]
[1767263288950,0.0001479,87859.0,87852.0,0.01138278]
[1767263289278,0.0001479,87859.0,87851.0,0.0113829]
[1767263289443,0.0001479,87859.0,87852.0,0.01138278]
[1767263291795,0.0001479,87859.0,87851.0,0.0113829]
[1767263291993,0.0001479,87859.0,87852.0,0.01138278]
[1767263292410,0.0001479,87859.0,87851.0,0.0113829]
[1767263292613,0.0001479,87859.0,87852.0,0.01138278]
[1767263295469,0.0001479,87859.0,87853.0,0.01138265]
[1767263296626,0.0001479,87859.0,87852.0,0.01138278]
[1767263297118,0.0001479,87859.0,87853.0,0.01138265]
[1767263297477,0.0001479,87859.0,87852.0,0.01138278]
[1767263298112,0.0001479,87859.0,87853.0,0.01138265]
[1767263300918,0.0001479,87859.0,87852.0,0.01138278]
[1767263301150,0.0001479,87859.0,87853.0,0.01138265]
[1767263301737,0.0001479,87859.0,87852.0,0.01138278]
[1767263301937,0.0001479,87859.0,87853.0,0.01138265]
[1767263303524,0.0001479,87859.0,87854.0,0.01138252]
[1767263303734,0.0001479,87859.0,87852.0,0.01138278]
[1767263304073,0.0001479,87859.0,87853.0,0.01138265]
[1767263308317,0.0001479,87859.0,87856.0,0.01138226]
[1767263308662,0.0001479,87859.0,87856.0,0.06829295]
[1767263317529,0.0001479,87859.0,87856.0,0.06823604]
[1767263319275,0.0001479,87859.0,87855.0,0.06831147]
[1767263319276,0.03087793,87877.0,87863.0,0.01138135]
[1767263319277,0.0001479,87877.0,87863.0,0.01138135]
[1767263319486,0.0001479,87877.0,87863.0,0.06828762]
[1767263319691,0.04780857,87875.0,87862.0,0.0114]
[1767263319888,0.04780857,87875.0,87862.0,0.02278148]
[1767263320334,0.04780857,87875.0,87862.0,0.01085]
[1767263320672,0.04780857,87875.0,87862.0,0.01079309]
[1767263323158,0.449451,87866.0,87863.0,0.05921937]
[1767263323693,0.449451,87866.0,87863.0,0.06828747]
[1767263323825,0.449451,87866.0,87865.0,0.05690547]
[1767263325416,0.0001479,87877.0,87867.0,0.05690418]
[1767263325965,0.0001479,87877.0,87865.0,0.06828656]
[1767263326887,0.0001479,87877.0,87865.0,0.03752671]
[1767263328537,0.0001479,87877.0,87866.0,0.05690425]
[1767263328794,0.0001479,87877.0,87864.0,0.01138122]
[1767263328941,0.000549,87866.0,87865.0,0.01138109]
[1767263329361,0.04780857,87874.0,87865.0,0.01138109]
[1767263330918,0.0001479,87877.0,87865.0,0.01138109]
[1767263330919,0.04897385,87877.0,87868.0,0.000147]
[1767263331117,0.04897385,87877.0,87869.0,0.0114]
[1767263331376,0.04897385,87877.0,87869.0,0.01134309]
[1767263331547,0.04897385,87877.0,87869.0,0.02272366]
[1767263331770,0.04897385,87877.0,87870.0,0.01138044]
[1767263331889,0.04897385,87877.0,87869.0,0.02272366]
[1767263332515,0.04897385,87877.0,87870.0,0.01138044]
[1767263333211,0.04897385,87877.0,87869.0,0.02272366]
[1767263333368,0.04897385,87877.0,87874.0,0.01137993]
[1767263333563,0.000549,87874.0,87872.0,0.06828092]
[1767263333785,0.04882595,87876.0,87873.0,0.01138005]
[1767263336481,0.0001479,87877.0,87873.0,0.01138005]
[1767263336866,0.0001479,87877.0,87874.0,0.01137993]
[1767263337879,0.0001479,87877.0,87873.0,0.01138005]
[1767263338585,0.0001479,87877.0,87872.0,0.01138018]
[1767263339228,0.0001479,87877.0,87874.0,0.01137993]
[1767263340233,0.0001479,87877.0,87874.0,0.06827895]
[1767263340460,0.04571485,87883.0,87876.0,0.01137967]
[1767263340654,0.04576711,87883.0,87876.0,0.01137967]
[1767263341052,0.04576711,87883.0,87877.0,0.01137954]
[1767263342136,0.04576711,87883.0,87875.0,0.0113798]
[1767263342337,0.04576711,87883.0,87876.0,0.01137967]
[1767263342851,0.04576711,87883.0,87875.0,0.0113798]
[1767263342993,0.04576711,87883.0,87876.0,0.01137967]
[1767263345185,0.04576711,87883.0,87875.0,0.0113798]
[1767263345481,0.04576711,87883.0,87876.0,0.01137967]
[1767263345855,0.04576711,87883.0,87874.0,0.01137993]
[1767263346049,0.000146,87876.0,87874.0,0.01137993]
[1767263346258,0.000146,87876.0,87873.0,0.06827979]
[1767263346402,0.04576711,87883.0,87873.0,0.01138005]
[1767263347522,0.04576711,87883.0,87872.0,0.01138018]
[1767263348796,0.04576711,87883.0,87873.0,0.01138005]
[1767263349009,0.000146,87873.0,87871.0,0.01138031]
[1767263349441,0.000146,87873.0,87870.0,0.10244499]
[1767263349616,0.04576711,87883.0,87872.0,0.01138018]
[1767263349759,0.04576711,87883.0,87873.0,0.01138005]
[1767263349959,0.04576711,87883.0,87872.0,0.01138018]
[1767263350795,0.04576711,87883.0,87873.0,0.01138005]
[1767263351636,0.04576711,87883.0,87872.0,0.01138018]
[1767263351794,0.04576711,87883.0,87873.0,0.01138005]
[1767263351994,0.04576711,87883.0,87872.0,0.01138018]
[1767263353061,0.04576711,87883.0,87873.0,0.01138005]
[1767263353323,0.04576711,87883.0,87872.0,0.01138018]
[1767263353490,0.04576711,87883.0,87873.0,0.01138005]
[1767263353696,0.04576711,87883.0,87872.0,0.01138018]
[1767263354648,0.04576711,87883.0,87870.0,0.10244499]
[1767263354793,0.04576711,87883.0,87871.0,0.01138031]
[1767263355868,0.04576711,87883.0,87873.0,0.01138005]
[1767263357857,0.04576711,87883.0,87871.0,0.01138031]
[1767263357858,0.04576711,87883.0,87872.0,0.01138018]
[1767263358635,0.04576711,87883.0,87872.0,0.01132328]
[1767263359976,0.04576711,87883.0,87873.0,0.01138005]
[1767263360826,0.04576711,87883.0,87874.0,0.01137993]
[1767263361029,0.04576711,87883.0,87873.0,0.01138005]
[1767263361252,0.04576711,87883.0,87874.0,0.01137993]
[1767263361681,0.04576711,87883.0,87873.0,0.01138005]
[1767263361890,0.04576711,87883.0,87872.0,0.01132328]
[1767263362032,0.04576711,87883.0,87873.0,0.01138005]
[1767263364209,0.04576711,87883.0,87872.0,0.01132328]
[1767263364368,0.04576711,87883.0,87873.0,0.01138005]
[1767263364573,0.04576711,87883.0,87872.0,0.01132328]
[1767263364790,0.04576711,87883.0,87873.0,0.01138005]
[1767263365494,0.04576711,87883.0,87872.0,0.01132328]
[1767263367696,0.04576711,87883.0,87873.0,0.01138005]
[1767263368568,0.04576711,87883.0,87872.0,0.01132328]
[1767263369506,0.04576711,87883.0,87873.0,0.01138005]
[1767263370126,0.04576711,87883.0,87872.0,0.01132328]
[1767263370434,0.04576711,87883.0,87873.0,0.01138005]
[1767263370731,0.04576711,87883.0,87872.0,0.01132328]
[1767263370886,0.04576711,87883.0,87873.0,0.01138005]
[1767263371532,0.04576711,87883.0,87872.0,0.01132328]
[1767263371740,0.04576711,87883.0,87873.0,0.01138005]
[1767263371904,0.04576711,87883.0,87872.0,0.01132328]
[1767263373044,0.04576711,87883.0,87873.0,0.01138005]
[1767263373738,0.04576711,87883.0,87872.0,0.01132328]
[1767263374569,0.04576711,87883.0,87874.0,0.01137993]
[1767263375192,0.04576711,87883.0,87873.0,0.01138005]
[1767263375433,0.04576711,87883.0,87874.0,0.01137993]
[1767263376114,0.04576711,87883.0,87873.0,0.01138005]
[1767263376314,0.04576711,87883.0,87874.0,0.01137993]
[1767263376480,0.04576711,87883.0,87873.0,0.01138005]
[1767263377215,0.04576711,87883.0,87874.0,0.01137993]
[1767263380326,0.04576711,87883.0,87872.0,0.01132328]
[1767263381038,0.04576711,87883.0,87871.0,0.01138031]
[1767263381233,0.04576711,87883.0,87873.0,0.01138005]
[1767263382177,0.04576711,87883.0,87874.0,0.01137993]
[1767263382598,0.04576711,87883.0,87877.0,0.01137954]
[1767263382757,0.04576711,87883.0,87878.0,0.01137941]
[1767263384195,0.04576711,87883.0,87880.0,0.01137915]
[1767263384196,5.226e-05,87883.0,87880.0,0.01137915]
[1767263384385,0.0001479,87886.0,87883.0,0.0117295]
[1767263384581,0.0001479,87886.0,87883.0,0.01137876]
[1767263386259,9e-07,87886.0,87883.0,0.01137876]
[1767263389031,9e-07,87886.0,87883.0,0.0682721]
[1767263391540,9e-07,87886.0,87883.0,0.01137876]
[1767263393899,9e-07,87886.0,87882.0,0.01137889]
[1767263394627,9e-07,87886.0,87883.0,0.01137876]
[1767263398359,9e-07,87886.0,87885.0,0.05689253]
[1767263402977,0.0001479,87895.0,87892.0,0.01137759]
[1767263403175,0.0001479,87895.0,87892.0,0.01048259]
[1767263403382,0.04987747,87895.0,87892.0,0.01048259]
[1767263404115,0.04987747,87895.0,87890.0,0.01137785]
[1767263405315,0.04987747,87895.0,87891.0,0.01137772]
[1767263405518,0.04987747,87895.0,87890.0,0.01137785]
[1767263405918,0.04987747,87895.0,87889.0,0.06826768]
[1767263406152,0.04987747,87895.0,87890.0,0.01137785]
[1767263407669,0.04987747,87895.0,87889.0,0.06826768]
[1767263407837,0.04987747,87895.0,87889.0,0.01137798]
[1767263408038,0.04987747,87895.0,87890.0,0.01137785]
[1767263408270,0.04987747,87895.0,87889.0,0.01137798]
[1767263409223,0.04987747,87895.0,87889.0,0.04553376]
[1767263411175,0.04987747,87895.0,87890.0,0.01137785]
[1767263411761,0.04987747,87895.0,87889.0,0.04553376]
[1767263412113,0.04987747,87895.0,87889.0,0.03415578]
[1767263412253,0.04987747,87895.0,87882.0,0.05689389]
[1767263412254,0.04987747,87895.0,87881.0,0.06827366]
[1767263412458,0.04972957,87890.0,87882.0,0.02277889]
[1767263413354,0.04972957,87890.0,87883.0,0.01137876]
[1767263416577,0.04972957,87890.0,87884.0,0.01137863]
[1767263416811,0.04972957,87890.0,87883.0,0.01137876]
[1767263417798,0.51381759,87893.0,87883.0,0.01137876]
[1767263419937,0.51381759,87893.0,87882.0,0.02277889]
[1767263420141,0.51381759,87893.0,87883.0,0.01137876]
[1767263420508,0.51381759,87893.0,87882.0,0.02277889]
[1767263420724,0.51381759,87893.0,87882.0,0.0114]
[1767263420939,0.51381759,87893.0,87882.0,0.02277889]
[1767263423936,0.04605471,87892.0,87882.0,0.0114]
[1767263425122,0.04605471,87892.0,87882.0,0.02277889]
[1767263425884,0.04605471,87892.0,87882.0,0.0114]
[1767263427024,0.04605471,87892.0,87878.0,0.02277889]
[1767263427236,0.04605471,87892.0,87874.0,0.0568993]
[1767263427237,0.04605471,87888.0,87881.0,0.0114]
[1767263427411,0.04605471,87888.0,87876.0,0.0341583]
[1767263427590,0.04605471,87885.0,87875.0,0.0114]
[1767263427796,0.04057032,87884.0,87875.0,0.0114]
[1767263429332,0.04057032,87884.0,87871.0,0.01138031]
[1767263429532,0.51381759,87881.0,87872.0,0.0114]
[1767263430302,0.51381759,87881.0,87872.0,0.02278018]
[1767263430556,0.04057032,87884.0,87872.0,0.02278018]
[1767263430976,0.04057032,87884.0,87872.0,0.0114]
[1767263431758,0.04057032,87884.0,87872.0,0.02278018]
[1767263432557,0.04057032,87884.0,87872.0,0.0114]
[1767263433333,0.04057032,87884.0,87872.0,0.02278018]
[1767263433786,0.04057032,87884.0,87872.0,0.0114]
[1767263433961,0.04057032,87884.0,87870.0,0.01138044]
[1767263434161,0.04057032,87884.0,87872.0,0.02278018]
[1767263434778,0.04057032,87884.0,87872.0,0.0114]
[1767263435183,0.51389821,87882.0,87872.0,0.0114]
[1767263435495,0.51389821,87882.0,87872.0,0.02278018]
[1767263435996,0.51389821,87882.0,87872.0,0.0114]
[1767263436301,0.51389821,87882.0,87872.0,0.02278018]
[1767263436497,0.51389821,87882.0,87866.0,0.04714952]
[1767263436498,0.13638146,87881.0,87866.0,0.04714952]
[1767263436698,0.17695178,87881.0,87871.0,0.0114]
[1767263438294,0.17695178,87881.0,87867.0,0.0114]
[1767263440183,0.17695178,87881.0,87867.0,0.02278083]
[1767263443344,0.17695178,87881.0,87868.0,0.0113807]
[1767263445500,0.13638146,87881.0,87868.0,0.01143296]
[1767263446610,0.13638146,87881.0,87869.0,0.01138057]
[1767263446832,0.13638146,87881.0,87868.0,0.01143296]
[1767263448930,0.13638146,87881.0,87869.0,0.01138057]
[1767263449240,0.13638146,87881.0,87868.0,0.05858248]
[1767263449645,0.13638146,87881.0,87869.0,0.01138057]
[1767263453472,0.13638146,87881.0,87870.0,0.01138044]
[1767263454095,0.13638146,87881.0,87869.0,0.01138057]
[1767263455875,0.13638146,87881.0,87868.0,0.05858248]
[1767263457147,0.13638146,87881.0,87868.0,0.04720178]
[1767263457294,0.13638146,87881.0,87868.0,0.05858248]
[1767263457497,0.13638146,87881.0,87868.0,0.04720178]
[1767263457698,0.13638146,87881.0,87868.0,0.05858248]
[1767263460570,0.13638146,87881.0,87868.0,0.04720178]
[1767263460880,0.13638146,87881.0,87868.0,0.05858248]
[1767263461969,0.0114,87886.0,87871.0,0.01138031]
[1767263462170,0.0114,87886.0,87873.0,0.04508895]
[1767263463344,0.0114,87886.0,87873.0,0.056469]
[1767263463552,0.0114,87886.0,87873.0,0.04508895]
[1767263464927,0.0114,87886.0,87873.0,0.056469]
[1767263465130,0.0114,87886.0,87873.0,0.04508895]
[1767263466346,0.02461226,87885.0,87873.0,0.04508895]
[1767263469019,0.51389821,87883.0,87873.0,0.04508895]
[1767263492526,0.51391127,87883.0,87873.0,0.04508895]
[1767263511941,0.51391127,87883.0,87873.0,0.03555671]
[1767263516983,0.05658816,87882.0,87868.0,5.226e-05]
[1767263517184,0.51391127,87878.0,87868.0,5.226e-05]
[1767263517548,0.51391127,87878.0,87868.0,0.04786612]
[1767263517784,0.51391127,87880.0,87868.0,0.04786612]
[1767263519901,0.51391127,87878.0,87868.0,0.04786612]
[1767263543328,0.51391127,87880.0,87868.0,0.04786612]
[1767263546938,0.51391127,87878.0,87868.0,0.04786612]
[1767263552109,0.51391127,87880.0,87868.0,0.04786612]
[1767263552814,0.51391127,87880.0,87868.0,0.05924682]
[1767263554579,0.5139391,87880.0,87868.0,0.05924682]
[1767263555611,0.5139391,87880.0,87869.0,0.01138057]
[1767263559447,0.5139391,87880.0,87868.0,0.05924682]
[1767263560004,0.5139391,87880.0,87869.0,0.01138057]
[1767263563086,0.5139391,87880.0,87868.0,0.05924682]
[1767263577980,0.5139391,87880.0,87869.0,0.01138057]
[1767263579961,0.5139391,87880.0,87868.0,0.05924682]
[1767263580393,0.5139391,87880.0,87869.0,0.01138057]
[1767263580592,0.5139391,87880.0,87868.0,0.05924682]
[1767263581471,0.5139391,87880.0,87869.0,0.01138057]
[1767263584037,0.5139391,87880.0,87868.0,0.05924682]
[1767263584442,0.5139391,87880.0,87869.0,0.01138057]
[1767263584617,0.5139391,87880.0,87868.0,0.05924682]
[1767263584815,0.5139391,87880.0,87869.0,0.01138057]
[1767263589972,0.5139391,87880.0,87869.0,0.05938891]
[1767263590457,0.5139391,87880.0,87870.0,0.01138044]
[1767263590853,0.5139391,87880.0,87869.0,0.05938891]
[1767263591614,0.5139391,87880.0,87870.0,0.01138044]
[1767263594097,0.5139391,87880.0,87869.0,0.05938891]
[1767263594494,0.5139391,87880.0,87870.0,0.01138044]
[1767263594700,0.5139391,87880.0,87869.0,0.05938891]
[1767263596295,0.5139391,87880.0,87870.0,0.01138044]
[1767263596502,0.5139391,87880.0,87869.0,0.05938891]
[1767263598439,0.5139391,87880.0,87870.0,0.01138044]
[1767263598641,0.5139391,87880.0,87869.0,0.05938891]
[1767263598991,0.5139391,87880.0,87870.0,0.01138044]
[1767263599328,0.5139391,87880.0,87869.0,0.05938891]
[1767263599702,0.5139391,87880.0,87870.0,0.01138044]
[1767263599903,0.5139391,87880.0,87869.0,0.05938891]
[1767263600221,0.5139391,87880.0,87870.0,0.01138044]
[1767263600832,0.5139391,87880.0,87869.0,0.05938891]
[1767263602646,0.5139391,87880.0,87870.0,0.01138044]
[1767263602996,0.5139391,87880.0,87869.0,0.05938891]
[1767263606033,0.5139391,87880.0,87870.0,0.01138044]
[1767263607900,0.5139391,87880.0,87869.0,0.05938891]
[1767263608532,0.5139391,87880.0,87870.0,0.01138044]
[1767263608742,0.5139391,87880.0,87869.0,0.05938891]
[1767263608940,0.5139391,87880.0,87870.0,0.01138044]
[1767263609506,0.5139391,87880.0,87869.0,0.05938891]
[1767263610122,0.5139391,87880.0,87869.0,0.04800834]
[1767263611741,0.5139391,87880.0,87869.0,0.05938891]
[1767263612109,0.5139391,87880.0,87869.0,0.04800834]
[1767263614554,0.5139391,87880.0,87869.0,0.05938891]
[1767263615337,0.5139391,87880.0,87869.0,0.04800834]
[1767263616382,0.5139391,87880.0,87869.0,0.05938891]
[1767263616584,0.51393107,87880.0,87869.0,0.05938891]
[1767263617325,0.51393107,87880.0,87869.0,0.04800834]
[1767263618005,0.51393107,87880.0,87869.0,0.05938891]
[1767263618371,0.04598298,87884.0,87869.0,0.04800834]
[1767263618526,0.13638146,87883.0,87869.0,0.04800834]
[1767263619505,0.13638146,87883.0,87869.0,0.05938891]